Cogmind - Beta 13 --- EXPLORER MODE // 2024.06.14 @ 20:21:15 Player: Gnomed! Result: Self-destructed Performance ------------- Evolutions (5) 2500 Regions Visited (11) 2200 Robots Destroyed (130) 650 Value Destroyed (5629) 5629 Prototype IDs (5) 100 Alien Tech Used (0) 0 Bonus (2736) 2736 TOTAL SCORE: 13815 Bonus ------- High Alert Combat Kills 423 Follower Combat Kills 252 Entered Garrisons 600 Used RIF Installer 1500 Friendly Fire -39 Cogmind --------- Core Integrity 850/1000 Matter 279/300 Energy 290/290 System Corruption 1% Temperature Cool (0) Movement Rolling (185) Ox7 Location -5/Factory Parts ------- > --- POWER (1) -------- Improved Deuterium Engine > --- PROPULSION (3) --- Wheel > --- UTILITY (11) ----- Improved Heat Sink High-capacity Storage Unit Improved Transmission Jammer Relay Coupler [Swarmer] (49) > --- WEAPON (3) ------- Heavy Phase Cannon Heavy Phase Cannon Flail > --- INVENTORY (20) --- Light Fission Core Matter Compressor (105) Improved Transmission Jammer Relay Coupler [NC] (47) Relay Coupler [Demolisher] (25) Relay Coupler [Specialist] (30) Improved Datajack Peak State ------------ > --- POWER ------------ Cold Fusion Reactor > --- PROPULSION ------- Improved Carbon-fiber Leg Improved Titanium Leg Wheel > --- UTILITY ---------- Improved Heat Sink Medium Storage Unit High-capacity Matter Pod Hardened Light Armor Plating Improved Light Armor Plating Relay Coupler [NC] Relay Coupler [Sentry] Relay Coupler [Hunter] > --- WEAPON ----------- Heavy Assault Rifle Assault Cannon Remote Datajack > --- INVENTORY -------- Improved Deuterium Engine Relay Coupler [Demolisher] Relay Coupler [Specialist] Blade Saw [Rating: 45] Favorites ----------- Power Cold Fusion Reactor Engine Ion Engine Power Core Light Nuclear Core Reactor Cold Fusion Reactor Propulsion Wheel Leg Improved Titanium Leg Wheel Wheel Flight Unit Improved Flight Unit Utility Medium Storage Unit Device Improved Heat Sink Storage Medium Storage Unit Hackware Relay Coupler [NC] Protection Hardened Light Armor Plating Weapon Assault Cannon Energy Gun Shock Rifle Energy Cannon Heavy Phase Cannon Ballistic Gun Light Assault Rifle Ballistic Cannon Assault Cannon Launcher Grenade Launcher Special Weapon Remote Datajack Impact Weapon Flail Slashing Weapon Blade Saw Build | -11 -10 -9 -8 -8 -8 -8 -6 -6 -6 -6 -5 ------- Run | Yrd Mat Mat Mat Sto Gar Rec Fac Gar Fac Gar Fac Slots Evolved 11 | . 1 2 2 . . . 4 . . . 2 Power . | . . . . . . . . . . . . Propulsion 1 | . . 1 . . . . . . . . . Utility 9 | . 1 1 1 . . . 4 . . . 2 Weapon 1 | . . . 1 . . . . . . . . Parts Attached 83 | 6 3 11 7 16 1 . 1 6 16 6 10 Power 7 | 1 . 1 2 1 . . . . 1 . 1 Engine 3 | 1 . 1 . . . . . . . . 1 Core 3 | . . . 2 . . . . . 1 . . Reactor 1 | . . . . 1 . . . . . . . Propulsion 21 | 2 1 2 2 6 . . . . 5 1 2 Treads . | . . . . . . . . . . . . Leg 3 | . . . . . . . . . 2 1 . Wheel 17 | 2 1 2 2 5 . . . . 3 . 2 Hover . | . . . . . . . . . . . . Flight 1 | . . . . 1 . . . . . . . Utility 26 | 2 1 5 2 3 1 . . 2 4 1 5 Device 9 | . 1 2 1 . 1 . . 1 . 1 2 Storage 4 | 1 . . 1 . . . . . . . 2 Processor . | . . . . . . . . . . . . Hackware 4 | . . . . . . . . . 3 . 1 Protection 9 | 1 . 3 . 3 . . . 1 1 . . Artifact . | . . . . . . . . . . . . Weapon 29 | 1 1 3 1 6 . . 1 4 6 4 2 Energy Gun 1 | . . . . . . . . . . 1 . Energy Cannon 2 | . . . . . . . . . . . 2 Ballistic Gun 14 | 1 1 3 1 3 . . . 1 3 1 . Ballistic Cannon 7 | . . . . 3 . . 1 2 1 . . Launcher 2 | . . . . . . . . 1 . 1 . Special Weapon 1 | . . . . . . . . . 1 . . Impact Weapon 1 | . . . . . . . . . . 1 . Slashing Weapon 1 | . . . . . . . . . 1 . . Piercing Weapon . | . . . . . . . . . . . . Special Melee Weapon . | . . . . . . . . . . . . Unidentified Prototypes 5 | . . . . 4 . . . . 1 . . Parts Lost 34 | . . 2 4 . 3 . . 7 6 11 1 Power 2 | . . . 1 . . . . . . 1 . Propulsion 10 | . . . 2 . 1 . . 1 3 2 1 Utility 13 | . . 2 1 . 1 . . 3 1 5 . Weapon 9 | . . . . . 1 . . 3 2 3 . Highest Loss Streak 9 | . . 2 4 . 2 . . 3 3 9 1 To Critical Strikes 1 | . . . . . . . . . . 1 . Average Slot Usage (%) 77 | . 97 98 93 96 90 83 63 63 74 36 25 Engine 2 | . 12 10 3 . . . . . . . 1 Reactor 4 | . . . . 6 8 8 6 6 5 . . Wheel 16 | . 25 29 21 25 19 16 12 11 8 1 5 Device 9 | . 11 18 13 8 10 16 12 8 6 5 2 Storage 12 | . 12 10 16 16 16 16 12 12 12 6 3 Hackware 2 | . . . . . . . . . 10 3 1 Protection 8 | . 12 10 8 13 10 8 6 6 9 1 . Ballistic Gun 8 | . 22 20 25 9 7 . . 1 8 1 . Ballistic Cannon 7 | . . . . 14 16 16 13 13 4 . . Naked Turns 19 | . . . . . . . . . . 19 . Heaviest Build 74 | 19 21 28 35 49 52 48 53 53 46 36 74 Greatest Support 38 | 20 20 30 30 34 34 24 24 24 38 15 26 Greatest Overweight (x) 13 | 6 1 . 2 3 2 1 2 3 13 9 7 Average Overweight (x) 1 | 1 . . 1 1 1 1 1 1 1 1 1 Largest Inventory Capacity 20 | 10 10 10 10 10 10 10 10 10 10 10 20 Average Capacity 10 | 9 10 10 10 10 10 10 10 10 10 9 12 Most Carried 10 | 5 10 10 9 10 10 10 10 10 8 5 7 Average Carried 7 | 1 7 7 7 9 9 10 9 9 5 4 5 Final Capacity 20 | 10 10 10 10 10 10 10 10 10 10 5 20 Final Carried 10 | 5 10 10 7 10 10 10 10 8 4 5 7 Class Distribution -------------------- 37% | Hacker-Tank 25% | Hacker-Mutant 11% | Scavenger-Tank 9% | Scavenger-Mutant 7% | Bothacker-Mutant 7% | Bothacker-Tank Dominant Class ---------------- Hacker-Mutant | -10/Materials Scavenger-Mutant | -9/Materials Scavenger-Tank | -8/Materials Hacker-Tank | -8/Storage Hacker-Tank | -8/Garrison Hacker-Mutant | -8/Recycling Hacker-Mutant | -6/Factory Hacker-Tank | -6/Garrison Bothacker-Tank | -6/Factory Hacker-Mutant | -6/Garrison Hacker-Mutant | -5/Factory Resources | -11 -10 -9 -8 -8 -8 -8 -6 -6 -6 -6 -5 ----------- Run | Yrd Mat Mat Mat Sto Gar Rec Fac Gar Fac Gar Fac Matter Collected 3815 | 280 116 346 239 974 538 . 43 493 499 77 210 Remotely . | . . . . . . . . . . . . Salvage Created 4358 | 144 151 439 374 1304 684 . 78 345 207 127 505 Parts 263 | 16 12 41 17 81 32 . 2 15 25 7 15 Haulers Intercepted 1 | . . . . 1 . . . . . . . Recyclers Shooed . | . . . . . . . . . . . . Parts Field Recycled . | . . . . . . . . . . . . Retrieved Matter . | . . . . . . . . . . . . Parts Self-Destructed . | . . . . . . . . . . . . Prevented . | . . . . . . . . . . . . Kills | -11 -10 -9 -8 -8 -8 -8 -6 -6 -6 -6 -5 ------- Run | Yrd Mat Mat Mat Sto Gar Rec Fac Gar Fac Gar Fac Combat Hostiles Destroyed 102 | . 5 12 8 32 20 . 3 10 4 3 5 Melee 2 | . . . . . . . . . . 1 1 Guns 41 | . 5 12 8 12 1 . . 1 2 . . Cannons 51 | . . . . 20 19 . 3 6 2 . 1 AOE 5 | . . . . . . . . 3 . 2 . Classes Destroyed 17 | 2 3 2 1 5 2 . . 1 1 . . Worker 7 | . 2 . . . . . . . 4 . 1 Builder 5 | . . . . 1 . . . . 2 . 2 Tunneler 6 | 4 . . . . . . . . . . 2 Hauler 1 | . . . . 1 . . . . . . . Recycler 4 | 1 . . 1 . . . . . . . 2 Operator 3 | . . 1 . 1 . . . . 1 . . Watcher 2 | . . . . 2 . . . . . . . Swarmer 16 | . 4 5 . 2 . . . . 2 . 3 Cutter 4 | . . . . . 2 . . 2 . . . Grunt 39 | . 1 3 6 14 12 . . 3 . . . Brawler 3 | . . . . 2 . . . . . 1 . Duelist 3 | . . . . 2 . . . . . 1 . Sentry 27 | . . 4 1 12 3 . 3 3 . . 1 Specialist 2 | . . . . . 2 . . . . . . Hunter 4 | . . . 1 . 1 . . 1 1 . . Programmer 3 | . . . . . . . . . 1 1 1 Behemoth 1 | . . . . . . . . 1 . . . Best Kill Streak 6 | 2 2 5 6 6 5 . 2 4 3 2 4 Combat Bots Only 6 | . 2 5 6 5 5 . 2 4 2 2 3 Max Kills in Single Turn 3 | 1 1 1 1 3 1 . 1 1 1 1 1 Gunslinging . | . . . . . . . . . . . . Exploded 1 | . . . . . . . . 1 . 1 . Melee 1 | . . . . . . . . . . 1 1 Uniques/NPCs Destroyed . | . . . . . . . . . . . . Combat | -11 -10 -9 -8 -8 -8 -8 -6 -6 -6 -6 -5 -------- Run | Yrd Mat Mat Mat Sto Gar Rec Fac Gar Fac Gar Fac Hostile Shots Fired 724 | . 24 79 53 60 62 . 99 135 96 76 40 Missed 229 | . 7 22 9 25 13 . 42 46 37 18 10 Damage Taken 4945 | . 189 429 379 331 574 . 250 889 645 926 333 Core 948 | . 41 73 11 50 46 . 27 86 91 373 150 Absorbed by Shields 42 | . . . . . . . . . . 42 . Ignored by Resistances 3052 | . 117 276 227 208 338 . 177 554 393 561 201 Core Remaining (%) 75 | 100 83 81 . . . 80 . . . 32 . Volleys Fired 326 | 20 24 42 16 59 40 . 11 62 38 10 4 Largest 3 | 1 2 2 3 3 3 . 3 3 3 1 2 Hottest 180 | 20 40 50 73 103 103 . 132 132 92 50 180 Shots Fired 719 | 20 40 84 48 177 117 . 26 123 66 10 8 Gun 361 | 20 40 84 48 67 37 . . 24 34 7 . Cannon 332 | . . . . 110 80 . 26 87 21 . 8 Launcher 15 | . . . . . . . . 12 . 3 . Special 11 | . . . . . . . . . 11 . . Kinetic 683 | 20 40 84 48 177 117 . 26 111 55 5 . Thermal 8 | . . . . . . . . . . . 8 Explosive 15 | . . . . . . . . 12 . 3 . Electromagnetic 2 | . . . . . . . . . . 2 . Robot Hit Streak 48 | 20 27 33 9 37 21 . 44 48 18 22 29 Robot Miss Streak 3 | . 1 3 1 2 2 . . 3 3 . . Penetration Max . | . . . . . . . . . . . . Secondary Targets 5 | . . 3 2 . . . . . . . . Max Gunslinging Chain 1 | . . 1 1 . . . . . . . . Shots Hit Robots 538 | 20 33 58 40 119 66 . 23 86 60 12 21 Core Hits 247 | 11 11 32 23 56 32 . 8 43 19 8 4 Critical Kills 2 | . . 1 . . . . . . . . 1 Critical Parts Destroyed 7 | . 1 . 1 2 . . . . . . 3 Critical Strikes 27 | . 1 1 1 6 5 . 1 4 4 . 4 Meltdown 1 | . . . . . . . . . . . 1 Destroy 5 | . 1 1 1 2 . . . . . . . Blast 15 | . . . . 4 5 . 1 4 1 . . Smash 3 | . . . . . . . . . . . 3 Sever 3 | . . . . . . . . . 3 . . Melee Attacks 35 | . . . . . . . . . 10 6 19 Impact 21 | . . . . . . . . . . 2 19 Slashing 14 | . . . . . . . . . 10 4 . Piercing . | . . . . . . . . . . . . Sneak Attacks 12 | . . . . . . . . . 1 . 11 Combat Hostiles 1 | . . . . . . . . . . . 1 Follow-up Attacks . | . . . . . . . . . . . . Damage Inflicted 11648 | 156 269 535 725 2761 1670 . 598 2303 918 416 1297 Guns 4470 | 156 269 535 725 1226 561 . . 454 454 90 . Cannons 5127 | . . . . 1535 1109 . 598 1323 289 . 273 Explosions 796 | . . . . . . . . 526 . 270 . Melee 1252 | . . . . . . . . . 172 56 1024 Ramming 3 | . . . . . . . . . 3 . . Kinetic 9324 | 156 269 535 725 2761 1670 . 598 1777 743 90 . Thermal 273 | . . . . . . . . . . . 273 Explosive 796 | . . . . . . . . 526 . 270 . Electromagnetic . | . . . . . . . . . . . . Impact 1024 | . . . . . . . . . . . 1024 Slashing 228 | . . . . . . . . . 172 56 . Piercing . | . . . . . . . . . . . . Highest Corruption 13 | . 1 1 . . . 1 . . 1 13 1 Average Corruption 4 | . 1 1 . . . 1 . . 1 11 1 Corruption Purged . | . . . . . . . . . . . . Corruption Blocked . | . . . . . . . . . . . . Effects 18 | . . . . . . 1 . . 2 11 4 Message Errors 3 | . . . . . . . . . . 3 . Matter Fused 3 | . . . . . . 1 . . . 1 1 Heat Flow Errors 3 | . . . . . . . . . . 3 . Energy Discharges 3 | . . . . . . . . . 1 2 . Data Loss (minor) 5 | . . . . . . . . . 1 2 2 Alerts 1 | . . . . . . . . . . . 1 Overload Shots . | . . . . . . . . . . . . Overflow Damage 531 | . . . . 4 . . 7 18 5 . 497 Projectiles 34 | . . . . 4 . . 7 . 5 . 18 Explosions 18 | . . . . . . . . 18 . . . Melee 479 | . . . . . . . . . . . 479 Knockbacks 24 | . . . . 6 7 . 1 6 3 . 1 Impact 1 | . . . . . . . . . . . 1 Kinetic 20 | . . . . 5 6 . 1 5 3 . . Secondary 3 | . . . . 1 1 . . 1 . . . Self-Inflicted Damage 226 | . . . . . 78 . . 28 1 119 . Shots 6 | . . . . . 1 . . 2 . 3 . Rammed 1 | . . . . . . . . . 1 . . Targets Rammed 1 | . . . . . . . . . 1 . . Kicked . | . . . . . . . . . . . . Crushed . | . . . . . . . . . . . . Highest Temperature 242 | 6 61 62 19 23 66 . 10 16 . 242 87 Average Temperature 22 | 3 17 17 11 7 25 . 4 7 . 114 44 Received Heat Transfer 2067 | . 96 267 279 261 423 . 132 183 93 180 153 Siege Activations . | . . . . . . . . . . . . Robots Corrupted . | . . . . . . . . . . . . Combat Hostiles . | . . . . . . . . . . . . Parts Fried 10 | . . . . . . . . . . . 10 Impact Corruptions 13 | . . . . . . . . . . . 13 Robots Melted 1 | . . . . . . . . . . . 1 Combat Hostiles 1 | . . . . . . . . . . . 1 Parts Melted 2 | . . . . . . . . . . . 2 Heat Transferred 259 | . . . . . . . . . . . 259 Parts Sabotaged . | . . . . . . . . . . . . Parts Stolen . | . . . . . . . . . . . . Parts Stripped . | . . . . . . . . . . . . Power Chain Reactions . | . . . . . . . . . . . . Alert | -11 -10 -9 -8 -8 -8 -8 -6 -6 -6 -6 -5 ------- Run | Yrd Mat Mat Mat Sto Gar Rec Fac Gar Fac Gar Fac Peak Influence 1014 | 25 197 481 300 682 1014 329 283 520 247 124 391 Initial 329 | . 12 59 77 90 298 329 148 152 202 67 48 Average 252 | 8 98 232 186 288 665 329 174 332 127 87 205 Maximum Alert Level 3 | . . 2 1 2 3 1 1 2 1 . 1 Low Security (%) 49 | 100 100 41 59 50 . . 80 12 60 100 47 Level 1 30 | . . 42 40 16 9 100 19 58 39 . 52 Level 2 14 | . . 15 . 33 40 . . 28 . . . Level 3 5 | . . . . . 49 . . . . . . Level 4 . | . . . . . . . . . . . . Level 5 . | . . . . . . . . . . . . High Security . | . . . . . . . . . . . . Max Security . | . . . . . . . . . . . . Squads Dispatched 16 | . . 3 1 6 . . 2 . 3 . 1 Investigation 2 | . . . 1 . . . 1 . . . . Extermination 2 | . . . . . . . . . 2 . . Reinforcement 8 | . . 3 . 3 . . . . 1 . 1 Assault . | . . . . . . . . . . . . Garrison 4 | . . . . 3 . . 1 . . . . Intercept . | . . . . . . . . . . . . Searches Triggered . | . . . . . . . . . . . . Construction Impeded . | . . . . . . . . . . . . Haulers Reinforced 1 | . . . . . . . . . . . 1 Active Scanning Responses . | . . . . . . . . . . . . Cargo Convoy Interrupts . | . . . . . . . . . . . . Stealth | -11 -10 -9 -8 -8 -8 -8 -6 -6 -6 -6 -5 --------- Run | Yrd Mat Mat Mat Sto Gar Rec Fac Gar Fac Gar Fac Distress Signals 9 | . 1 1 1 3 . . . . 3 . . Communications Jammed . | . . . . . . . . . . . . Distress Signals . | . . . . . . . . . . . . Times Spotted 162 | . 8 23 13 36 21 . 4 10 18 12 17 Peak Tracking Total 8 | . 4 4 8 4 3 . 3 4 5 8 7 Tactical Retreats 10 | . 1 2 . . 2 . . . . . 5 Traps | -11 -10 -9 -8 -8 -8 -8 -6 -6 -6 -6 -5 ------- Run | Yrd Mat Mat Mat Sto Gar Rec Fac Gar Fac Gar Fac Traps Triggered 17 | . 4 1 . 3 1 . . 4 1 2 1 Indirectly . | . . . . . . . . . . . . Trap Hack Attempts . | . . . . . . . . . . . . Triggered . | . . . . . . . . . . . . Disarmed . | . . . . . . . . . . . . Reprogrammed . | . . . . . . . . . . . . Reused . | . . . . . . . . . . . . Traps Extracted . | . . . . . . . . . . . . Installed . | . . . . . . . . . . . . Triggered . | . . . . . . . . . . . . Machines | -11 -10 -9 -8 -8 -8 -8 -6 -6 -6 -6 -5 ---------- Run | Yrd Mat Mat Mat Sto Gar Rec Fac Gar Fac Gar Fac Machines Disabled 16 | . . . . 4 4 . . 5 1 1 1 Max in Single Turn 2 | . . . . 1 2 . . 1 . 1 . Garrison Relay 4 | . . . . . 2 . . 1 . 1 . Phase Generator 1 | . . . . . 1 . . . . . . Machines Repaired . | . . . . . . . . . . . . Machines Dismantled . | . . . . . . . . . . . . Machines Sabotaged . | . . . . . . . . . . . . Overloaded Fab Kills . | . . . . . . . . . . . . Hacking | -11 -10 -9 -8 -8 -8 -8 -6 -6 -6 -6 -5 --------- Run | Yrd Mat Mat Mat Sto Gar Rec Fac Gar Fac Gar Fac Machines Accessed 18 | . 1 2 1 7 1 1 2 2 1 . . Terminals 15 | . 1 2 1 6 1 1 1 2 . . . Fabricators . | . . . . . . . . . . . . Repair Stations . | . . . . . . . . . . . . Recycling Units . | . . . . . . . . . . . . Scanalyzers . | . . . . . . . . . . . . Garrison Access 3 | . . . . 1 . . 1 . 1 . . Total Hacks 40 | . 2 7 5 13 1 3 4 4 1 . . Successful 23 | . 2 6 1 6 1 1 3 2 1 . . Failed 17 | . . 1 4 7 . 2 1 2 . . . Catastrophic 2 | . . . 1 . . 1 . . . . . Database Lockouts . | . . . . . . . . . . . . Manual 22 | . 2 7 5 3 . 2 3 . . . . Terminals 36 | . 2 7 5 12 1 3 2 4 . . . Fabricators . | . . . . . . . . . . . . Repair Stations . | . . . . . . . . . . . . Recycling Units . | . . . . . . . . . . . . Scanalyzers . | . . . . . . . . . . . . Garrison Access 4 | . . . . 1 . . 2 . 1 . . Terminal Hacks 16 | . 2 4 1 5 1 1 . 2 . . . Record 1 | . . . . . . 1 . . . . . Open Door 4 | . . . . 4 . . . . . . . Level Access Points 2 | . 1 1 . . . . . . . . . Branch Access Points 2 | . . 1 1 . . . . . . . . Emergency Access Points 2 | . . . . . 1 . . 1 . . . Zone Layout 4 | . 1 2 . 1 . . . . . . . Patrol Navigation 1 | . . . . . . . . 1 . . . Fabricator Hacks . | . . . . . . . . . . . . Repair Station Hacks . | . . . . . . . . . . . . Recycling Unit Hacks . | . . . . . . . . . . . . Scanalyzer . | . . . . . . . . . . . . Garrison Access Hacks 3 | . . . . 1 . . 1 . 1 . . Unlock Access 3 | . . . . 1 . . 1 . 1 . . Unauthorized Hacks 4 | . . 2 . . . . 2 . . . . Terminals 3 | . . 2 . . . . 1 . . . . Botnet 3 | . . 2 . . . . 1 . . . . Fabricators . | . . . . . . . . . . . . Repair Stations . | . . . . . . . . . . . . Recycling Units . | . . . . . . . . . . . . Scanalyzers . | . . . . . . . . . . . . Garrison Access 1 | . . . . . . . 1 . . . . Eject 1 | . . . . . . . 1 . . . . Data Cores Recovered 1 | . . . . 1 . . . . . . . Used . | . . . . . . . . . . . . Hacking Detections 10 | . . 1 1 2 1 1 1 2 1 . . Full Trace Events 3 | . . . 1 1 . 1 . . . . . Feedback Events 1 | . . . . . . 1 . . . . . Corruption 1 | . . . . . . 1 . . . . . Feedback Blocked . | . . . . . . . . . . . . Robot Schematics Acquired . | . . . . . . . . . . . . Robots Built . | . . . . . . . . . . . . Authchips . | . . . . . . . . . . . . Time . | . . . . . . . . . . . . Total Robot Build Rating . | . . . . . . . . . . . . Part Schematics Acquired . | . . . . . . . . . . . . Parts Built . | . . . . . . . . . . . . Authchips . | . . . . . . . . . . . . Time . | . . . . . . . . . . . . Total Part Build Rating . | . . . . . . . . . . . . Parts Repaired . | . . . . . . . . . . . . Time . | . . . . . . . . . . . . Parts Recycled . | . . . . . . . . . . . . Recycled Matter . | . . . . . . . . . . . . Retrieved Matter . | . . . . . . . . . . . . Retrieved Components . | . . . . . . . . . . . . Parts Scanalyzed . | . . . . . . . . . . . . Part Schematics Acquired . | . . . . . . . . . . . . Parts Damaged . | . . . . . . . . . . . . Bothacking | -11 -10 -9 -8 -8 -8 -8 -6 -6 -6 -6 -5 ------------ Run | Yrd Mat Mat Mat Sto Gar Rec Fac Gar Fac Gar Fac Used RIF Installer 3 | . . . . . 1 . . 1 . 1 . Patrol Navigation 1 | . . . . . . . . 1 . . . Program Shield 1 | . . . . . . . . . . 1 . Robots Hacked 5 | . . . . . . . . . 5 . . Non-combat 2 | . . . . . . . . . 2 . . Combat 3 | . . . . . . . . . 3 . . Robot Hacks Applied 6 | . . . . . . . . . 6 . . map_route 2 | . . . . . . . . . 2 . . find_garrison 1 | . . . . . . . . . 1 . . formatsys_high 3 | . . . . . . . . . 3 . . Relay Couplers Released 20 | . . . . . 7 . 4 4 . 5 . Ejected 4 | . . . . . . . 4 . . . . Machine Destruction 16 | . . . . . 7 . . 4 . 5 . Attached 4 | . . . . . . . . . 3 . 1 Fabnet Peak Effective % . | . . . . . . . . . . . . Robots Rewired 1 | . . . . . . . . . . . 1 Allies Hacked . | . . . . . . . . . . . . Hacks Repelled . | . . . . . . . . . . . . Allies | -11 -10 -9 -8 -8 -8 -8 -6 -6 -6 -6 -5 -------- Run | Yrd Mat Mat Mat Sto Gar Rec Fac Gar Fac Gar Fac Total Allies 4 | . . . . . . . . . 3 . 1 Largest Group 2 | . . . . . . . . . 2 . 1 Highest-Rated Group 73 | . . . . . . . . . 73 . 49 Highest-Rated Ally 49 | . . . . . . . . . 41 . 49 Total Orders 2 | . . . . . 2 . . . . . . RETURN 2 | . . . . . 2 . . . . . . Ally Attacks 29 | . . . . . . . . . 23 . 6 Total Damage 1218 | . . . . . . . . . 907 . 311 Kills 7 | . . . . . . . . . 6 . 1 Allies Corrupted . | . . . . . . . . . . . . Allies Melted . | . . . . . . . . . . . . Intel | -11 -10 -9 -8 -8 -8 -8 -6 -6 -6 -6 -5 ------- Run | Yrd Mat Mat Mat Sto Gar Rec Fac Gar Fac Gar Fac Robot Analysis Total . | . . . . . . . . . . . . Derelict Logs Recovered . | . . . . . . . . . . . . Drone Launches 2 | . . . . . 2 . . . . . . Drone Recoveries 2 | . . . . . 2 . . . . . . Exploration | -11 -10 -9 -8 -8 -8 -8 -6 -6 -6 -6 -5 ------------- Run | Yrd Mat Mat Mat Sto Gar Rec Fac Gar Fac Gar Fac Turns Passed 5561 | 196 391 489 167 1043 589 197 181 538 968 308 494 Spaces Moved 3793 | 106 329 375 64 738 401 171 114 299 551 182 463 Core 337 | 28 . . . . . . . . 14 74 221 Treads . | . . . . . . . . . . . . Legs 197 | . . . . . . . . . 111 86 . Wheels 3259 | 78 329 375 64 738 401 171 114 299 426 22 242 Hover . | . . . . . . . . . . . . Flight . | . . . . . . . . . . . . Fastest Speed 50 | 50 80 80 95 95 101 105 105 105 95 50 50 Average Speed 106 | 137 92 80 95 100 106 105 107 110 145 133 85 Slowest Speed 700 | 350 95 80 110 125 120 105 120 135 700 500 185 Overloaded Moves . | . . . . . . . . . . . . Propulsion Burnouts . | . . . . . . . . . . . . Robots Hopped . | . . . . . . . . . . . . Cave-ins Triggered . | . . . . . . . . . . . . Exploration Rate (%) 35 | 8 66 50 12 85 46 44 4 45 22 27 14 Regions Visited 11 Branch Regions 2 Pre-discovered Areas . | . . . . . . . . . . . . Known Exits Taken 8 | 1 1 1 1 1 . 1 1 . 1 . . Unknown Exits Taken . | . . . . . . . . . . . . Scrap Searched . | . . . . . . . . . . . . Spaces Dug . | . . . . . . . . . . . . Terrain Destroyed 135 | . . . . 21 70 . . 21 . 22 1 Melee . | . . . . . . . . . . . . Projectile 22 | . . . . 21 . . . . . . 1 AOE 113 | . . . . . 70 . . 21 . 22 . Terrain Rammed . | . . . . . . . . . . . . Walls Destroyed . | . . . . . . . . . . . . Machines Disabled . | . . . . . . . . . . . . Actions | -11 -10 -9 -8 -8 -8 -8 -6 -6 -6 -6 -5 --------- Run | Yrd Mat Mat Mat Sto Gar Rec Fac Gar Fac Gar Fac Total 4681 | 136 387 498 133 919 482 188 151 401 640 225 521 Wait 290 | . 20 60 44 61 26 18 23 9 16 5 8 Move 3783 | 105 328 374 63 738 400 170 113 298 551 180 463 Hop . | . . . . . . . . . . . . Pick Up 49 | 5 9 5 1 11 4 . 2 1 3 3 5 Fast Attach 42 | 6 1 1 1 9 . . . 3 9 4 8 Attach 31 | . 2 6 4 3 1 . 1 3 7 2 2 Detach . | . . . . . . . . . . . . Swap 10 | . . 4 2 4 . . . . . . . Drop 45 | . 3 6 2 18 3 . 1 1 5 5 1 Fire 326 | 20 24 42 16 59 40 . 11 62 38 10 4 Melee 35 | . . . . . . . . . 10 6 19 Ram 1 | . . . . . . . . . 1 . . Kick . | . . . . . . . . . . . . Crush . | . . . . . . . . . . . . Escape Stasis 58 | . . . . 16 8 . . 24 . 10 . Rewire 11 | . . . . . . . . . . . 11 Trap . | . . . . . . . . . . . . Miscellaneous . | . . . . . . . . . . . . Route ------- -11/Scrapyard -10/Materials (discovered 5 exits: *Mat x3 / *Min x2) -9/Materials (discovered 5 exits: *Mat x3 / *Min x2) -8/Materials (discovered 2 exits: *Sto x2) -8/Storage (discovered 2 exits: *Fac / Gar) -8/Garrison -8/Recycling -6/Factory (discovered 2 exits: *Fac / Gar) -6/Garrison -6/Factory (discovered 3 exits: Fac x2 / Gar) -6/Garrison -5/Factory History --------- Turn | Location | Event 31 | -11/Scrapyard | Identified exit to Materials 31 | -11/Scrapyard | Discovered exit to Materials (range 15) 197 | -11/Scrapyard | Entered Materials 197 | -10/Materials | Evolved 1 slot: Utility x1 197 | -10/Materials | Identified exit to Mines 197 | -10/Materials | Discovered exit to Mines (range 14) 227 | -10/Materials | Identified exit to Materials 301 | -10/Materials | Build established: Hacker-Mutant 433 | -10/Materials | Discovered exit to Mines (range 15) 588 | -10/Materials | Entered another Materials area 588 | -9/Materials | Evolved 2 slots: Propulsion x1, Utility x1 605 | -9/Materials | Identified exit to Materials 705 | -9/Materials | Identified exit to Mines 705 | -9/Materials | Discovered exit to Mines (range 14) 918 | -9/Materials | Build established: Scavenger-Mutant 1077 | -9/Materials | Entered another Materials area 1077 | -8/Materials | Evolved 2 slots: Utility x1, Weapon x1 1095 | -8/Materials | Identified exit to Storage 1238 | -8/Materials | Lost 4 parts (1p2n1u) 1244 | -8/Materials | Entered Storage 1847 | -8/Storage | Identified exit to Factory 1847 | -8/Storage | Discovered exit to Factory (range 16) 1926 | -8/Storage | Garrison activated, responded to threat 2215 | -8/Storage | Build established: Hacker-Tank 2287 | -8/Storage | Identified exit to Garrison 2287 | -8/Storage | Entered Garrison 2309 | -8/Garrison | Triggered checkpoint 2343 | -8/Garrison | Garrison Relay disabled 2439 | -8/Garrison | Triggered checkpoint 2475 | -8/Garrison | Triggered checkpoint 2475 | -8/Garrison | Triggered checkpoint 2545 | -8/Garrison | Triggered checkpoint 2593 | -8/Garrison | Identified exit to Recycling 2593 | -8/Garrison | Discovered exit to Recycling (range 12) 2715 | -8/Garrison | Garrison Relay disabled 2717 | -8/Garrison | Triggered checkpoint 2810 | -8/Garrison | Phase Generator disabled 2841 | -8/Garrison | Installed Relay Interface Framework 2876 | -8/Garrison | Entered Recycling 3059 | -8/Recycling | Identified exit to Factory 3059 | -8/Recycling | Discovered exit to Factory (range 8) 3073 | -8/Recycling | Entered Factory 3073 | -6/Factory | Evolved 4 slots: Utility x4 3108 | -6/Factory | Identified exit to Factory 3108 | -6/Factory | Discovered exit to Factory (range 15) 3122 | -6/Factory | Build established: Hacker-Mutant 3202 | -6/Factory | Garrison activated, responded to threat 3252 | -6/Factory | Identified exit to Garrison 3254 | -6/Factory | Entered Garrison 3316 | -6/Garrison | Triggered checkpoint 3402 | -6/Garrison | Lost 3 parts (2u1w) 3403 | -6/Garrison | Garrison Relay disabled 3503 | -6/Garrison | Build established: Hacker-Tank 3507 | -6/Garrison | Spotted B-75 Beast 3580 | -6/Garrison | Destroyed B-75 Beast 3630 | -6/Garrison | Triggered checkpoint 3689 | -6/Garrison | Expanded RIF knowledge: Patrol Navigation 3698 | -6/Garrison | Identified exit to Factory 3698 | -6/Garrison | Discovered exit to Factory (range 12) 3792 | -6/Garrison | Entered Factory 4480 | -6/Factory | Build established: Bothacker-Tank 4543 | -6/Factory | Discovered exit to Factory (range 37) 4543 | -6/Factory | Discovered exit to Factory (range 112) 4631 | -6/Factory | Lost 3 parts (1n1u1w) 4727 | -6/Factory | Spotted B-75 Beast 4760 | -6/Factory | Identified exit to Garrison 4760 | -6/Factory | Entered Garrison 4806 | -6/Garrison | Triggered checkpoint 4811 | -6/Garrison | System corruption reached 10% 4863 | -6/Garrison | Lost 9 parts (1p1n5u2w) 4935 | -6/Garrison | Garrison Relay disabled 5030 | -6/Garrison | Core integrity fell below 50% 5040 | -6/Garrison | Triggered checkpoint 5058 | -6/Garrison | Expanded RIF knowledge: Program Shield 5063 | -6/Garrison | Discovered exit to Factory (range 5) 5068 | -6/Garrison | Entered Factory 5068 | -5/Factory | Evolved 2 slots: Utility x2 5339 | -5/Factory | Build established: Hacker-Mutant 5562 | -5/Factory | Self-destructed Last Messages --------------- 05387_ Acquired Hvy. Phase Cannon. 05389_ System corrupted: Component data lost. 05389_ Acquired Hvy. Phase Cannon. 05391_ Destroyed Imp. Heat Sink. 05396_ M-28 Smith repairs Antigrav System. 05399_ Destroyed Antigrav System. 05399_ P-70 Sage destroyed. 05406_ Acquired 59 matter. 05414_ R-10 Processor collects Imp. Target Analyzer. 05415_ Acquired Imp. Heat Sink. 05416_ System corrupted: Component data lost. 05449_ Com. Wheel destroyed. 05453_ Y-64 Sentinel suffers critical hit (Meltdown). 05453_ Imp. Treads melted. 05453_ Adv. Heat Sink melted. 05469_ Acquired Lgt. Fission Core. 05472_ Acquired Imp. Transmission Jammer. 05475_ System corrupted: IFF burst signal emitted. 05476_ Acquired Imp. Transmission Jammer. 05511_ System corrupted: Matter fused (-6). Map ----- +----------------------------------------------------+ | ?????????????????????????????# | | ?????????????????????????????# | | ?????????????????????????????# | | ?????????????????????????????# | | ?????????????????????????????# | | ???????????????????????#########+#### | | ???????????????????????# ! # | | ???????????????????????# # | | ???????????????????????# + | | ???????????????????????# !%! # | | ???????????????????????# | # | | ???????????????????????# # | | ??????# ?????##+##????# # | | ??????# " ### ###### # | | ??????? "T T +% # | | ??????# ### ###### # | | ??????????????## ##????# # | | ??????????###### #?????# # | | ??????????# ## #?????############## | | ??????????# #??????????????????##### | | ??????????# !## #??????????????????????? | | ???????????# #?# #??????????????????????? | | ??????####?# #?# #??????????????????????? | | ?????##T ### #?# #??????????????????????? | | ?????# #?# #??????????????????????? | | ?????# #+###@##?????????????????????? | | ?????# # ] ! #?????????????????????? | | ?????# # [ #?????????????????????? | | ?????# # !* #?????????????????????? | | ?????# # [ #?????????????????????? | | ???### ##+#####?????????????????????? | | ???# #?????????????????????????? | | ???# #?????????????????????????? | | ???# "" #?????????????????????????? | | ???# "" #?????????????????????????? | | ???# """ #?????????????????????????? | | ???# """ ####??????????????????????? | | ???# """ ???????????????? | | ???# ###########??????????????????? | | ???# "" #????????????????????????????? | | ???# "" #????????????????????????????? | | ???# """ #????????????????????????????? | | ???# """ #????????????????????????????? | | ???# """ #????????????????????????????? | | ???# ######???????????????????????? | | ???# # #???????????????????????? | | ???# # #???????????????????????? | | ???#### #! #???????????????????????? | | ?###### # #???????????????????????? | | ?#%#"## + ]#???????????????????????? | +----------------------------------------------------+ Best States ------------- Heat Dissipation 65 Energy Generation 17 Energy Capacity 300 Matter Stores 500 Matter Capacity 500 Sight Range 16 Terrain Scan Range 16 Terrain Scan Density 10 Jamming Range 14 Armor Coverage 300 Resistance: KI 35 Resistance: TH 35 Resistance: EX 35 Resistance: EM 35 Resistance: I 35 Resistance: S 35 Resistance: P 35 Evasion (%) 50 Offensive Hacking 20 Relay Coupler Types 3 Relay Coupler Value 92 Item Schematics ----------------- None Robot Schematics ------------------ None Fabricated ------------ Nothing Alien Tech Used ----------------- None Achievements -------------- None Challenges ------------ None Game ------ Seed LatentHypervelocityTrap Manual? 0 Play Time 00:54:29 Cumulative 30.9 hours Start 2024.06.14 @ 15:31:53 End 2024.06.14 @ 20:21:15 Sessions 3 Manual Loads 0 Difficulty Explorer Special Mode None Game No. 28 Rogue 0 Adventurer 0 Explorer 28 Win Type - Total 1 Types 0/0/1/0/0/0/0/0/0 Lore% 24 Gallery% 49 Achievement% 44 Wizard Run 0 Options --------- Layout 0 ASCII 0 Keyboard 0 Movement Mouse Keybinds 0 Fullscreen 2 Font 18/SmallcapsGlow Map View 76x50 Zoom Use 99% Tactical HUD 1 Map Filters NONE Filters NONE Steam 1 RUN: 67d2944d-e511-4e55-9af3-2fe05ec582f9